Workbook

Sheet English
C2: Costs | D2: %-Amount | E2: Amount
C4: Applicable material | E4: 1,000.00
B5: + | C5: Material overheads | D5: 45.0% | E5: =+E4*D5 -> 450.00
B7: = | C7: Total material costs | E7: =+SUM(E4:E5) -> 1,450.00
B9: + | C9: Direct labor costs | E9: 200.00
B10: + | C10: Factory overheads | D10: 85.0% | E10: =+E9*D10 -> 170.00
B11: + | C11: Other direct manufacturing costs | E11: 5.00
B13: = | C13: Manufacturing costs | E13: =+SUM(E7:E11) -> 1,825.00
B15: + | C15: Administration overheads | D15: 10.0% | E15: =+E13*D15 -> 182.50
B16: + | C16: Sales overheads | D16: 5.0% | E16: =+E13*D16 -> 91.25
B17: + | C17: Other direct sales costs | E17: 10.00
B19: = | C19: Cost price | E19: =+SUM(E13:E17) -> 2,108.75
B21: + | C21: Profit | D21: 7.0% | E21: =+E19*D21 -> 147.61
B23: = | C23: Cash sale price | E23: =+SUM(E19:E21) -> 2,256.36
B25: + | C25: Cashback | D25: 2.0% | E25: =+E23/(1-D25-D26)*D25 -> 47.50
B26: + | C26: Commission fee | D26: 3.0% | E26: =+E23/(1-D25-D26)*D26 -> 71.25
B28: = | C28: Target selling price | E28: =+SUM(E23:E26) -> 2,375.12
B30: + | C30: Customer discounts | D30: 8.0% | E30: =+E28/(1-D30)*D30 -> 206.53
B32: = | C32: Sales price (net) | E32: =+SUM(E28:E30) -> 2,581.65
B34: + | C34: VAT | D34: 19.0% | E34: =+E32*D34 -> 490.51
B36: = | C36: Sales price (gross) | E36: =+SUM(E32:E34) -> 3,072

Sheet German
C3: Kosten | D3: %-Satz | E3: Betrag
C5: Fertigungsmaterial | E5: 1,000.00
B6: + | C6: Materialgemeinkosten | D6: 45.0% | E6: =+E5*D6 -> 450.00
B8: = | C8: Materialkosten | E8: =+SUM(E5:E6) -> 1,450.00
B10: + | C10: Fertigungslöhne | E10: 200.00
B11: + | C11: Fertigungsgemeinkosten | D11: 85.0% | E11: =+E10*D11 -> 170.00
B12: + | C12: Sondereinzelkosten der Fertigung | E12: 5.00
B14: = | C14: Herstellkosten | E14: =+SUM(E8:E12) -> 1,825.00
B16: + | C16: Verwaltungsgemeinkosten | D16: 10.0% | E16: =+E14*D16 -> 182.50
B17: + | C17: Vertriebsgemeinkosten | D17: 5.0% | E17: =+E14*D17 -> 91.25
B18: + | C18: Sondereinzelkosten des Vertriebs | E18: 10.00
B20: = | C20: Selbstkosten | E20: =+SUM(E14:E18) -> 2,108.75
B22: + | C22: Gewinnzuschlag | D22: 7.0% | E22: =+E20*D22 -> 147.61
B24: = | C24: Barverkaufspreis | E24: =+SUM(E20:E22) -> 2,256.36
B26: + | C26: Kundenskonto | D26: 2.0% | E26: =+E24/(1-D26-D27)*D26 -> 47.50
B27: + | C27: Vertreterprovision | D27: 3.0% | E27: =+E24/(1-D26-D27)*D27 -> 71.25
B29: = | C29: Zielverkaufspreis | E29: =+SUM(E24:E27) -> 2,375.12
B31: + | C31: Kundenrabatt | D31: 8.0% | E31: =+E29/(1-D31)*D31 -> 206.53
B33: = | C33: Angebotspreis (netto) | E33: =+SUM(E29:E31) -> 2,581.65
B35: + | C35: Mehrwertsteuer | D35: 19.0% | E35: =+E33*D35 -> 490.51
B37: = | C37: Angebotspreis (brutto) | E37: =+SUM(E33:E35) -> 3,072
